[Event "IV Elllobregat Open Chess Tmnt"]
[Site "Sant Boi de Llobregat, Spain"]
[Date "2023.12.03"]
[Round "4.4"]
[White "Ter-Sahakyan, Samvel"]
[Black "Gholami Orimi, Mahdi"]
[Result "1/2-1/2"]
[TimeControl "90min/40moves + 15min/end + 30sec from move 1"]
[WhiteFideId "13302531"]
[BlackFideId "12558486"]
[WhiteElo "2618"]
[BlackElo "2442"]

1. d4 {[%clk 01:30:55]} {[%emt 00:00:05]} Nf6 {[%clk 01:30:23]} {[%emt
00:00:37]} 2. c4 {[%clk 01:30:59]} {[%emt 00:00:26]} e6 {[%clk 01:30:36]}
{[%emt 00:00:18]} 3. Nc3 {[%clk 01:31:06]} {[%emt 00:00:22]} Bb4 {[%clk
01:29:03]} {[%emt 00:02:03]} 4. e3 {[%clk 01:30:33]} {[%emt 00:01:02]} O-O
{[%clk 01:28:56]} {[%emt 00:00:36]} 5. Bd3 {[%clk 01:29:51]} {[%emt 00:01:13]}
d5 {[%clk 01:29:14]} {[%emt 00:00:12]} 6. a3 {[%clk 01:29:23]} {[%emt
00:00:58]} Bxc3+ {[%clk 01:27:01]} {[%emt 00:02:43]} 7. bxc3 {[%clk 01:29:44]}
{[%emt 00:00:10]} b6 {[%clk 01:23:40]} {[%emt 00:03:51]} 8. cxd5 {[%clk
01:25:28]} {[%emt 00:04:45]} exd5 {[%clk 01:24:07]} {[%emt 00:00:03]} 9. Ne2
{[%clk 01:24:38]} {[%emt 00:01:21]} c5 {[%clk 01:23:48]} {[%emt 00:00:49]} 10.
O-O {[%clk 01:22:57]} {[%emt 00:02:10]} Ba6 {[%clk 01:24:15]} {[%emt 00:00:04]}
11. f3 {[%clk 01:20:17]} {[%emt 00:03:11]} Re8 {[%clk 01:07:48]} {[%emt
00:16:57]} 12. Ng3 {[%clk 01:18:38]} {[%emt 00:02:08]} Bxd3 {[%clk 00:49:16]}
{[%emt 00:19:03]} 13. Qxd3 {[%clk 01:19:03]} {[%emt 00:00:05]} Nbd7 {[%clk
00:49:30]} {[%emt 00:00:16]} 14. Bb2 {[%clk 01:11:09]} {[%emt 00:08:23]} Rc8
{[%clk 00:47:25]} {[%emt 00:02:36]} 15. Rae1 {[%clk 01:08:34]} {[%emt
00:03:05]} Qc7 {[%clk 00:45:56]} {[%emt 00:01:59]} 16. Re2 {[%clk 01:04:16]}
{[%emt 00:04:47]} Nf8 {[%clk 00:27:52]} {[%emt 00:18:35]} 17. e4 {[%clk
01:00:13]} {[%emt 00:04:32]} Ng6 {[%clk 00:25:40]} {[%emt 00:02:43]} 18. Ref2
{[%clk 00:47:38]} {[%emt 00:13:05]} Nf4 {[%clk 00:21:25]} {[%emt 00:04:45]} 19.
Qd2 {[%clk 00:45:50]} {[%emt 00:02:17]} cxd4 {[%clk 00:18:38]} {[%emt
00:03:18]} 20. cxd4 {[%clk 00:46:03]} {[%emt 00:00:17]} N6h5 {[%clk 00:18:05]}
{[%emt 00:01:03]} 21. Nxh5 {[%clk 00:37:31]} {[%emt 00:09:03]} Nxh5 {[%clk
00:18:33]} {[%emt 00:00:02]} 22. e5 {[%clk 00:37:49]} {[%emt 00:00:12]} g6
{[%clk 00:18:37]} {[%emt 00:00:26]} 23. g4 {[%clk 00:37:43]} {[%emt 00:00:36]}
Ng7 {[%clk 00:19:05]} {[%emt 00:00:02]} 24. f4 {[%clk 00:37:14]} {[%emt
00:00:58]} Qe7 {[%clk 00:18:49]} {[%emt 00:00:46]} 25. f5 {[%clk 00:36:56]}
{[%emt 00:00:48]} Qh4 {[%clk 00:19:01]} {[%emt 00:00:19]} 26. Rg2 {[%clk
00:27:12]} {[%emt 00:10:14]} Kh8 {[%clk 00:16:43]} {[%emt 00:02:48]} 27. Qf4
{[%clk 00:20:23]} {[%emt 00:07:16]} Rg8 {[%clk 00:14:15]} {[%emt 00:03:00]} 28.
e6 {[%clk 00:16:58]} {[%emt 00:03:56]} gxf5 {[%clk 00:12:49]} {[%emt 00:01:56]}
29. exf7 {[%clk 00:16:27]} {[%emt 00:01:00]} Rgf8 {[%clk 00:13:15]} {[%emt
00:00:04]} 30. Qe5 {[%clk 00:10:28]} {[%emt 00:06:28]} Rxf7 {[%clk 00:13:32]}
{[%emt 00:00:13]} 31. Qxd5 {[%clk 00:08:44]} {[%emt 00:02:14]} Rcf8 {[%clk
00:11:16]} {[%emt 00:02:46]} 32. Bc3 {[%clk 00:08:42]} {[%emt 00:00:32]} Qe7
{[%clk 00:08:37]} {[%emt 00:03:06]} 33. Bb4 {[%clk 00:06:21]} {[%emt 00:02:54]}
Rd8 {[%clk 00:08:47]} {[%emt 00:00:20]} 34. Qf3 {[%clk 00:03:39]} {[%emt
00:03:11]} Qd7 {[%clk 00:09:16]} {[%emt 00:00:03]} 35. d5 {[%clk 00:02:56]}
{[%emt 00:01:13]} a5 {[%clk 00:05:20]} {[%emt 00:04:26]} 36. Bc3 {[%clk
00:03:09]} {[%emt 00:00:13]} Qxd5 {[%clk 00:04:27]} {[%emt 00:01:26]} 37. gxf5
{[%clk 00:02:18]} {[%emt 00:01:21]} Qxf3 {[%clk 00:02:51]} {[%emt 00:02:06]} 38.
Rxf3 {[%clk 00:02:46]} {[%emt 00:00:02]} h6 {[%clk 00:02:37]} {[%emt 00:00:44]}
39. Rfg3 {[%clk 00:00:37]} {[%emt 00:02:39]} Rdd7 {[%clk 00:02:29]} {[%emt
00:00:38]} 40. Rb2 {[%clk 00:15:35]} {[%emt 00:00:32]} Kh7 {[%clk 00:16:04]}
{[%emt 00:01:55]} 41. Bxg7 {[%clk 00:12:04]} {[%emt 00:04:01]} Rxg7 {[%clk
00:16:16]} {[%emt 00:00:17]} 42. Rxb6 {[%clk 00:12:27]} {[%emt 00:00:07]} Rxg3+
{[%clk 00:10:09]} {[%emt 00:06:37]} 43. hxg3 {[%clk 00:12:52]} {[%emt
00:00:04]} Rd3 {[%clk 00:06:06]} {[%emt 00:04:34]} 44. Rb7+ {[%clk 00:10:49]}
{[%emt 00:02:33]} Kg8 {[%clk 00:06:35]} {[%emt 00:00:01]} 45. Kg2 {[%clk
00:10:31]} {[%emt 00:00:47]} Rxa3 {[%clk 00:06:36]} {[%emt 00:00:29]} 46. Kh3
{[%clk 00:08:42]} {[%emt 00:02:19]} h5 {[%clk 00:02:31]} {[%emt 00:04:36]} 47.
Ra7 {[%clk 00:05:51]} {[%emt 00:03:21]} Ra4 {[%clk 00:02:02]} {[%emt 00:00:59]}
48. Ra6 {[%clk 00:04:37]} {[%emt 00:01:44]} Kh7 {[%clk 00:02:14]} {[%emt
00:00:15]} 49. Ra7+ {[%clk 00:03:31]} {[%emt 00:01:39]} Kh6 {[%clk 00:02:01]}
{[%emt 00:00:39]} 1/2-1/2

[Event "IV Elllobregat Open Chess Tmnt"]
[Site "Sant Boi de Llobregat, Spain"]
[Date "2023.12.03"]
[Round "4.5"]
[White "Abdisalimov, Abdimalik"]
[Black "Yuffa, Daniil"]
[Result "0-1"]
[TimeControl "90min/40moves + 15min/end + 30sec from move 1"]
[WhiteFideId "14206323"]
[BlackFideId "24131423"]
[WhiteElo "2496"]
[BlackElo "2600"]

1. e4 {[%clk 01:30:17]} {[%emt 00:00:42]} c5 {[%clk 01:30:40]} {[%emt
00:00:20]} 2. Nf3 {[%clk 01:30:34]} {[%emt 00:00:13]} d6 {[%clk 01:31:00]}
{[%emt 00:00:10]} 3. d4 {[%clk 01:30:58]} {[%emt 00:00:06]} cxd4 {[%clk
01:31:21]} {[%emt 00:00:08]} 4. Nxd4 {[%clk 01:30:28]} {[%emt 00:01:01]} Nf6
{[%clk 01:31:42]} {[%emt 00:00:08]} 5. Nc3 {[%clk 01:30:46]} {[%emt 00:00:13]}
a6 {[%clk 01:32:04]} {[%emt 00:00:08]} 6. Be3 {[%clk 01:31:08]} {[%emt
00:00:08]} e5 {[%clk 01:32:26]} {[%emt 00:00:07]} 7. Nb3 {[%clk 01:31:25]}
{[%emt 00:00:13]} Be6 {[%clk 01:32:42]} {[%emt 00:00:13]} 8. f3 {[%clk
01:31:48]} {[%emt 00:00:07]} h5 {[%clk 01:33:05]} {[%emt 00:00:06]} 9. Qd2
{[%clk 01:32:13]} {[%emt 00:00:06]} Nbd7 {[%clk 01:33:12]} {[%emt 00:00:23]} 10.
Nd5 {[%clk 01:32:24]} {[%emt 00:00:19]} Bxd5 {[%clk 01:33:24]} {[%emt
00:00:17]} 11. exd5 {[%clk 01:32:45]} {[%emt 00:00:10]} g6 {[%clk 01:33:44]}
{[%emt 00:00:09]} 12. O-O-O {[%clk 01:32:20]} {[%emt 00:00:55]} Bg7 {[%clk
01:33:27]} {[%emt 00:00:47]} 13. Kb1 {[%emt 00:05:48]} Rc8 {[%clk 01:31:48]} 14.
c4 {[%clk 01:24:15]} {[%emt 00:05:27]} b6 {[%clk 01:29:47]} {[%emt 00:02:30]}
15. Be2 {[%clk 01:16:00]} {[%emt 00:08:45]} Nc5 {[%clk 01:27:58]} {[%emt
00:02:19]} 16. Na1 {[%clk 01:15:28]} {[%emt 00:01:01]} O-O {[%clk 01:22:21]}
{[%emt 00:06:06]} 17. h3 {[%clk 01:14:11]} {[%emt 00:01:48]} h4 {[%clk
01:17:08]} {[%emt 00:05:43]} 18. Bg5 {[%clk 01:10:02]} {[%emt 00:04:39]} Re8
{[%clk 01:17:30]} {[%emt 00:00:08]} 19. Nc2 {[%clk 01:05:20]} {[%emt 00:05:13]}
Qd7 {[%clk 01:13:55]} {[%emt 00:04:05]} 20. Bxh4 {[%clk 00:54:45]} {[%emt
00:11:05]} e4 {[%clk 01:10:29]} {[%emt 00:03:55]} 21. Nd4 {[%clk 00:52:05]}
{[%emt 00:03:09]} e3 {[%clk 01:08:30]} {[%emt 00:02:29]} 22. Qe1 {[%clk
00:37:08]} {[%emt 00:15:28]} b5 {[%clk 01:08:24]} {[%emt 00:00:37]} 23. Bxf6
{[%clk 00:32:02]} {[%emt 00:05:36]} Bxf6 {[%clk 01:08:33]} {[%emt 00:00:20]} 24.
cxb5 {[%clk 00:32:19]} {[%emt 00:00:13]} Ra8 {[%clk 00:38:19]} {[%emt
00:30:44]} 25. a3 {[%clk 00:12:10]} {[%emt 00:20:40]} Reb8 {[%clk 00:38:23]}
{[%emt 00:00:26]} 26. g4 {[%clk 00:11:01]} {[%emt 00:01:38]} axb5 {[%clk
00:37:22]} {[%emt 00:01:31]} 27. Nc6 {[%clk 00:07:54]} {[%emt 00:03:38]} Rb6
{[%clk 00:32:17]} {[%emt 00:05:35]} 28. Rh2 {[%clk 00:07:57]} {[%emt 00:00:27]}
b4 {[%clk 00:31:19]} {[%emt 00:01:28]} 29. Bc4 {[%clk 00:01:43]} {[%emt
00:06:44]} bxa3 {[%clk 00:26:43]} {[%emt 00:05:06]} 30. b4 {[%clk 00:02:08]}
{[%emt 00:00:05]} a2+ {[%clk 00:14:15]} {[%emt 00:12:58]} 31. Rxa2 {[%clk
00:01:55]} {[%emt 00:00:44]} Rxa2 {[%clk 00:14:02]} {[%emt 00:00:42]} 32. Bxa2
{[%clk 00:02:24]} {[%emt 00:00:01]} Qb7 {[%clk 00:14:11]} {[%emt 00:00:21]} 33.
Kc2 {[%clk 00:01:25]} {[%emt 00:01:29]} Qa6 {[%clk 00:13:31]} {[%emt 00:01:09]}
34. Bb3 {[%clk 00:01:54]} {[%emt 00:00:01]} Qa3 {[%clk 00:12:33]} {[%emt
00:01:27]} 0-1

[Event "IV Elllobregat Open Chess Tmnt"]
[Site "Sant Boi de Llobregat, Spain"]
[Date "2023.12.03"]
[Round "4.6"]
[White "Fedoseev, Vladimir"]
[Black "Levin, Guy"]
[Result "1-0"]
[TimeControl "90min/40moves + 15min/end + 30sec from move 1"]
[WhiteFideId "24130737"]
[BlackFideId "2824213"]
[WhiteElo "2675"]
[BlackElo "2404"]

1. d4 {[%clk 01:30:46]} {[%emt 00:00:13]} d5 {[%clk 01:30:47]} {[%emt
00:00:14]} 2. Nf3 {[%clk 01:31:06]} {[%emt 00:00:09]} Nf6 {[%clk 01:31:06]}
{[%emt 00:00:11]} 3. c4 {[%clk 01:31:32]} {[%emt 00:00:04]} dxc4 {[%clk
01:31:29]} {[%emt 00:00:07]} 4. e3 {[%clk 01:31:57]} {[%emt 00:00:05]} e6
{[%clk 01:30:10]} {[%emt 00:01:48]} 5. Bxc4 {[%clk 01:32:17]} {[%emt 00:00:08]}
a6 {[%clk 01:30:37]} {[%emt 00:00:06]} 6. O-O {[%clk 01:32:35]} {[%emt
00:00:11]} Nbd7 {[%clk 01:31:01]} {[%emt 00:00:06]} 7. a4 {[%clk 01:32:59]}
{[%emt 00:00:07]} c5 {[%clk 01:31:18]} {[%emt 00:00:12]} 8. Qe2 {[%clk
01:33:23]} {[%emt 00:00:06]} Qc7 {[%clk 01:30:58]} {[%emt 00:00:50]} 9. Nc3
{[%clk 01:24:03]} {[%emt 00:09:49]} Bd6 {[%clk 01:30:18]} {[%emt 00:01:10]} 10.
b3 {[%clk 01:18:39]} {[%emt 00:05:54]} O-O {[%clk 01:28:55]} {[%emt 00:01:52]}
11. Bb2 {[%clk 01:14:52]} {[%emt 00:04:18]} cxd4 {[%clk 01:26:11]} {[%emt
00:03:14]} 12. exd4 {[%clk 01:15:15]} {[%emt 00:00:08]} Nb6 {[%clk 01:26:20]}
{[%emt 00:00:21]} 13. Nd1 {[%clk 01:08:20]} {[%emt 00:07:25]} Bd7 {[%clk
01:19:06]} {[%emt 00:07:44]} 14. Ne5 {[%clk 01:05:47]} {[%emt 00:03:04]} Nxc4
{[%clk 01:02:37]} {[%emt 00:16:59]} 15. bxc4 {[%clk 01:05:54]} {[%emt
00:00:24]} b5 {[%clk 01:02:51]} {[%emt 00:00:15]} 16. Ne3 {[%clk 01:00:19]}
{[%emt 00:06:05]} bxc4 {[%clk 00:47:01]} {[%emt 00:16:20]} 17. N3xc4 {[%clk
01:00:48]} {[%emt 00:00:01]} Rfc8 {[%clk 00:45:05]} {[%emt 00:02:26]} 18. Rfc1
{[%clk 00:59:01]} {[%emt 00:02:17]} Rab8 {[%clk 00:45:30]} {[%emt 00:00:05]} 19.
g3 {[%clk 00:56:03]} {[%emt 00:03:28]} Be8 {[%clk 00:43:30]} {[%emt 00:02:29]}
20. d5 {[%clk 00:44:56]} {[%emt 00:11:37]} Nxd5 {[%clk 00:24:09]} {[%emt
00:19:51]} 21. Ng4 {[%clk 00:45:20]} {[%emt 00:00:06]} h5 {[%clk 00:24:24]}
{[%emt 00:00:15]} 22. Nxd6 {[%clk 00:31:38]} {[%emt 00:14:13]} Qxd6 {[%clk
00:24:52]} {[%emt 00:00:02]} 23. Be5 {[%clk 00:31:57]} {[%emt 00:00:11]} Rxc1+
{[%clk 00:24:33]} {[%emt 00:00:49]} 24. Rxc1 {[%clk 00:32:26]} {[%emt
00:00:01]} Qa3 {[%clk 00:24:31]} {[%emt 00:00:32]} 25. Qd2 {[%clk 00:32:17]}
{[%emt 00:00:40]} hxg4 {[%clk 00:23:20]} {[%emt 00:01:40]} 26. Bxb8 {[%clk
00:32:42]} {[%emt 00:00:06]} Qxa4 {[%clk 00:23:16]} {[%emt 00:00:34]} 27. Be5
{[%clk 00:28:41]} {[%emt 00:04:31]} f6 {[%clk 00:22:43]} {[%emt 00:01:03]} 28.
Bd6 {[%clk 00:29:00]} {[%emt 00:00:12]} Bg6 {[%clk 00:22:12]} {[%emt 00:01:00]}
29. Qe2 {[%clk 00:28:40]} {[%emt 00:00:50]} Qe4 {[%clk 00:18:29]} {[%emt
00:04:13]} 30. Qxe4 {[%clk 00:26:45]} {[%emt 00:02:25]} Bxe4 {[%clk 00:18:57]}
{[%emt 00:00:02]} 31. Rc4 {[%clk 00:27:09]} {[%emt 00:00:07]} Bf3 {[%clk
00:17:40]} {[%emt 00:01:47]} 32. Ra4 {[%clk 00:27:03]} {[%emt 00:00:35]} Nc3
{[%clk 00:17:13]} {[%emt 00:00:56]} 33. Rxa6 {[%clk 00:26:55]} {[%emt
00:00:38]} Ne2+ {[%clk 00:17:31]} {[%emt 00:00:13]} 34. Kf1 {[%clk 00:27:24]}
Nd4 {[%clk 00:17:51]} {[%emt 00:00:11]} 35. Ra4 {[%clk 00:23:56]} {[%emt
00:03:58]} Nf5 {[%clk 00:16:52]} {[%emt 00:01:28]} 36. Bc5 {[%clk 00:24:07]}
{[%emt 00:00:19]} e5 {[%clk 00:17:03]} {[%emt 00:00:19]} 37. Ke1 {[%clk
00:24:30]} {[%emt 00:00:07]} Kf7 {[%clk 00:16:24]} {[%emt 00:01:08]} 38. Kd2
{[%clk 00:24:29]} {[%emt 00:00:31]} Kg6 {[%clk 00:08:29]} {[%emt 00:08:25]} 39.
Kc3 {[%clk 00:24:21]} {[%emt 00:00:38]} Bd1 {[%clk 00:05:58]} {[%emt 00:03:01]}
40. Ra3 {[%clk 00:39:37]} {[%emt 00:00:14]} Bf3 {[%clk 00:21:07]} {[%emt
00:00:19]} 41. Kc4 {[%clk 00:39:50]} {[%emt 00:00:16]} Kf7 {[%clk 00:21:16]}
{[%emt 00:00:22]} 42. Kb5 {[%clk 00:39:52]} {[%emt 00:00:28]} Be2+ {[%clk
00:19:36]} {[%emt 00:02:10]} 43. Kb6 {[%clk 00:40:00]} {[%emt 00:00:22]} Nd4
{[%clk 00:19:15]} {[%emt 00:00:51]} 44. Re3 {[%clk 00:39:41]} {[%emt 00:00:49]}
Bf1 {[%clk 00:15:42]} {[%emt 00:04:03]} 45. Re1 {[%clk 00:38:12]} {[%emt
00:01:59]} Bg2 {[%clk 00:14:50]} {[%emt 00:01:22]} 46. Bxd4 {[%clk 00:38:37]}
{[%emt 00:00:05]} exd4 {[%clk 00:15:16]} {[%emt 00:00:04]} 47. Rd1 {[%clk
00:39:03]} {[%emt 00:00:04]} Ke6 {[%clk 00:13:37]} {[%emt 00:02:10]} 48. Rxd4
{[%clk 00:39:11]} {[%emt 00:00:22]} f5 {[%clk 00:14:05]} {[%emt 00:00:01]} 49.
Kc7 {[%clk 00:39:17]} {[%emt 00:00:25]} Ke5 {[%clk 00:11:59]} {[%emt 00:02:36]}
50. Rb4 {[%clk 00:39:35]} {[%emt 00:00:12]} Ke6 {[%clk 00:11:57]} {[%emt
00:00:32]} 51. Rb5 {[%clk 00:39:14]} {[%emt 00:00:51]} g6 {[%clk 00:12:16]}
{[%emt 00:00:11]} 52. Rb6+ {[%clk 00:39:11]} {[%emt 00:00:33]} Kf7 {[%clk
00:11:59]} {[%emt 00:00:46]} 53. Kd6 {[%clk 00:39:35]} {[%emt 00:00:06]} Kf6
{[%clk 00:12:20]} {[%emt 00:00:09]} 54. Kc5+ {[%clk 00:40:02]} {[%emt
00:00:03]} 1-0

[Event "IV Elllobregat Open Chess Tmnt"]
[Site "Sant Boi de Llobregat, Spain"]
[Date "2023.12.03"]
[Round "4.7"]
[White "Szpar, Milosz"]
[Black "Alekseenko, Kirill"]
[Result "0-1"]
[TimeControl "90min/40moves + 15min/end + 30sec from move 1"]
[WhiteFideId "1184989"]
[BlackFideId "4135539"]
[WhiteElo "2485"]
[BlackElo "2670"]

1. e4 {[%clk 01:30:57]} {[%emt 00:00:02]} e5 {[%clk 01:30:43]} {[%emt
00:00:17]} 2. Nf3 {[%clk 01:31:20]} {[%emt 00:00:07]} Nc6 {[%clk 01:31:02]}
{[%emt 00:00:11]} 3. Nc3 {[%clk 01:31:40]} {[%emt 00:00:10]} Nf6 {[%clk
01:31:27]} {[%emt 00:00:06]} 4. Bb5 {[%clk 01:32:02]} {[%emt 00:00:07]} Bb4
{[%clk 01:31:14]} {[%emt 00:00:43]} 5. O-O {[%clk 01:32:10]} {[%emt 00:00:21]}
O-O {[%clk 01:31:00]} {[%emt 00:00:45]} 6. d3 {[%clk 01:32:20]} {[%emt
00:00:20]} Bxc3 {[%clk 01:31:24]} {[%emt 00:00:07]} 7. bxc3 {[%clk 01:32:42]}
{[%emt 00:00:08]} d6 {[%clk 01:31:51]} {[%emt 00:00:03]} 8. Re1 {[%clk
01:32:31]} {[%emt 00:00:41]} Bd7 {[%clk 01:23:49]} {[%emt 00:08:32]} 9. d4
{[%clk 01:31:19]} {[%emt 00:01:41]} Re8 {[%clk 01:20:09]} {[%emt 00:04:11]} 10.
Bd3 {[%clk 01:26:23]} {[%emt 00:05:25]} h6 {[%clk 01:17:34]} {[%emt 00:03:05]}
11. Rb1 {[%clk 01:21:31]} {[%emt 00:05:22]} Rb8 {[%clk 01:17:16]} {[%emt
00:00:49]} 12. h3 {[%clk 01:20:23]} {[%emt 00:01:38]} Nh7 {[%clk 01:11:31]}
{[%emt 00:06:15]} 13. Be3 {[%clk 01:16:11]} {[%emt 00:04:42]} b6 {[%clk
01:11:56]} {[%emt 00:00:05]} 14. Nd2 {[%clk 01:14:24]} {[%emt 00:02:17]} Qf6
{[%clk 01:07:22]} {[%emt 00:05:05]} 15. Qf3 {[%clk 01:09:59]} {[%emt 00:04:54]}
Qg6 {[%clk 01:00:54]} {[%emt 00:06:59]} 16. Kh2 {[%clk 01:06:50]} {[%emt
00:03:39]} Nd8 {[%clk 00:52:15]} {[%emt 00:09:09]} 17. Qg3 {[%clk 00:48:44]}
{[%emt 00:18:36]} Qxg3+ {[%clk 00:50:59]} {[%emt 00:01:47]} 18. Kxg3 {[%clk
00:43:07]} {[%emt 00:06:06]} Ne6 {[%clk 00:50:54]} {[%emt 00:00:36]} 19. Kh2
{[%clk 00:39:00]} {[%emt 00:04:37]} Nf4 {[%clk 00:49:59]} {[%emt 00:01:25]} 20.
Bxf4 {[%clk 00:33:05]} {[%emt 00:06:24]} exf4 {[%clk 00:50:24]} {[%emt
00:00:05]} 21. g3 {[%clk 00:33:13]} {[%emt 00:00:22]} fxg3+ {[%clk 00:41:56]}
{[%emt 00:08:59]} 22. Kxg3 {[%clk 00:33:30]} {[%emt 00:00:13]} Nf6 {[%clk
00:41:05]} {[%emt 00:01:21]} 23. f4 {[%clk 00:32:22]} {[%emt 00:01:38]} g6
{[%clk 00:39:09]} {[%emt 00:02:27]} 24. h4 {[%clk 00:29:47]} {[%emt 00:03:04]}
d5 {[%clk 00:32:17]} {[%emt 00:07:23]} 25. e5 {[%clk 00:28:48]} {[%emt
00:01:29]} Nh5+ {[%clk 00:32:43]} {[%emt 00:00:04]} 26. Kf3 {[%clk 00:29:12]}
{[%emt 00:00:05]} c5 {[%clk 00:32:53]} {[%emt 00:00:21]} 27. dxc5 {[%clk
00:23:10]} {[%emt 00:06:32]} bxc5 {[%clk 00:33:06]} {[%emt 00:00:17]} 28. c4
{[%clk 00:21:44]} {[%emt 00:01:56]} Bc6 {[%clk 00:30:59]} {[%emt 00:02:37]} 29.
Rxb8 {[%clk 00:16:22]} {[%emt 00:05:51]} Rxb8 {[%clk 00:30:55]} {[%emt
00:00:34]} 30. cxd5 {[%clk 00:12:29]} {[%emt 00:04:24]} Bxd5+ {[%clk 00:31:21]}
{[%emt 00:00:04]} 31. Ke3 {[%clk 00:12:46]} {[%emt 00:00:12]} Rb2 {[%clk
00:26:34]} {[%emt 00:05:18]} 32. a3 {[%clk 00:10:38]} {[%emt 00:02:38]} c4
{[%clk 00:24:48]} {[%emt 00:02:16]} 33. Bxc4 {[%clk 00:03:38]} {[%emt
00:07:29]} Bxc4 {[%clk 00:24:58]} {[%emt 00:00:20]} 34. Nxc4 {[%clk 00:04:03]}
{[%emt 00:00:05]} Rxc2 {[%clk 00:25:24]} {[%emt 00:00:04]} 35. Nd6 {[%clk
00:04:05]} {[%emt 00:00:29]} Ra2 {[%clk 00:19:29]} {[%emt 00:06:26]} 36. f5
{[%clk 00:03:37]} {[%emt 00:00:57]} Rxa3+ {[%clk 00:18:26]} {[%emt 00:01:33]}
37. Kd4 {[%clk 00:03:54]} {[%emt 00:00:13]} Ra4+ {[%clk 00:09:27]} {[%emt
00:09:30]} 38. Kc5 {[%clk 00:04:18]} {[%emt 00:00:06]} gxf5 {[%clk 00:05:57]}
{[%emt 00:04:01]} 39. Nxf5 {[%clk 00:04:43]} {[%emt 00:00:05]} Kh7 {[%clk
00:04:02]} {[%emt 00:02:25]} 40. Rg1 {[%clk 00:16:34]} {[%emt 00:03:39]} Rf4
{[%clk 00:17:08]} {[%emt 00:02:23]} 41. Nd4 {[%clk 00:05:57]} {[%emt 00:11:07]}
Re4 {[%clk 00:11:45]} {[%emt 00:05:53]} 42. Nc6 {[%clk 00:04:34]} {[%emt
00:01:54]} a5 {[%clk 00:08:28]} {[%emt 00:03:47]} 43. Kd5 {[%clk 00:02:16]}
{[%emt 00:02:47]} Rxh4 {[%clk 00:08:08]} {[%emt 00:00:51]} 44. Nxa5 {[%clk
00:02:39]} {[%emt 00:00:07]} Nf4+ {[%clk 00:08:08]} {[%emt 00:00:30]} 45. Kd6
{[%clk 00:02:56]} {[%emt 00:00:13]} h5 {[%clk 00:07:50]} {[%emt 00:00:49]} 46.
Rf1 {[%clk 00:02:03]} {[%emt 00:01:23]} Kg7 {[%clk 00:06:02]} {[%emt 00:02:18]}
47. Nc4 {[%clk 00:01:39]} {[%emt 00:00:53]} Ng6 {[%clk 00:05:09]} {[%emt
00:01:23]} 48. Ne3 {[%clk 00:01:40]} {[%emt 00:00:30]} Rd4+ {[%clk 00:05:23]}
{[%emt 00:00:16]} 49. Nd5 {[%clk 00:00:35]} {[%emt 00:01:35]} Re4 {[%clk
00:03:36]} {[%emt 00:02:17]} 50. Rf5 {[%clk 00:01:03]} {[%emt 00:00:02]} h4
{[%clk 00:03:32]} {[%emt 00:00:35]} 51. Rh5 {[%clk 00:01:19]} {[%emt 00:00:14]}
Re1 {[%clk 00:01:50]} {[%emt 00:02:11]} 52. Nf6 {[%clk 00:00:57]} {[%emt
00:00:52]} Rd1+ {[%clk 00:01:14]} {[%emt 00:01:07]} 53. Kc5 {[%clk 00:01:21]}
{[%emt 00:00:05]} Kf8 {[%clk 00:00:55]} {[%emt 00:00:50]} 54. e6 {[%clk
00:00:47]} {[%emt 00:01:04]} fxe6 {[%clk 00:01:20]} {[%emt 00:00:05]} 55. Rh7
{[%clk 00:01:13]} {[%emt 00:00:04]} Rf1 {[%clk 00:01:29]} {[%emt 00:00:21]} 56.
Ne4 {[%clk 00:01:20]} {[%emt 00:00:23]} Rf7 {[%clk 00:00:46]} {[%emt 00:01:13]}
57. Rxf7+ {[%clk 00:00:57]} {[%emt 00:00:54]} Kxf7 {[%clk 00:01:12]} {[%emt
00:00:04]} 58. Kd6 {[%clk 00:01:21]} {[%emt 00:00:05]} e5 {[%clk 00:00:58]}
{[%emt 00:00:45]} 59. Kd7 {[%clk 00:01:41]} {[%emt 00:00:10]} Nf4 {[%clk
00:01:01]} {[%emt 00:00:27]} 60. Kd6 {[%clk 00:01:46]} {[%emt 00:00:26]} Nd3
{[%clk 00:01:21]} {[%emt 00:00:09]} 61. Kd5 {[%clk 00:00:51]} {[%emt 00:01:24]}
Kg6 {[%clk 00:01:47]} {[%emt 00:00:04]} 62. Nd2 {[%clk 00:00:34]} {[%emt
00:00:47]} h3 {[%clk 00:01:43]} {[%emt 00:00:34]} 63. Nf3 {[%clk 00:00:38]}
{[%emt 00:00:26]} Kf5 {[%clk 00:02:05]} {[%emt 00:00:07]} 64. Nh2 {[%clk
00:00:39]} {[%emt 00:00:28]} Kf4 {[%clk 00:02:16]} {[%emt 00:00:20]} 65. Nf1
{[%clk 00:01:00]} {[%emt 00:00:09]} Nf2 {[%clk 00:02:33]} {[%emt 00:00:13]} 66.
Nh2 {[%clk 00:01:15]} {[%emt 00:00:14]} Ng4 {[%clk 00:02:54]} {[%emt 00:00:09]}
67. Nf1 {[%clk 00:01:30]} {[%emt 00:00:15]} Ne3+ {[%clk 00:03:13]} {[%emt
00:00:11]} 68. Nxe3 {[%clk 00:01:55]} {[%emt 00:00:05]} Kxe3 {[%clk 00:03:40]}
{[%emt 00:00:03]} 69. Kxe5 {[%clk 00:01:51]} {[%emt 00:00:03]} 0-1